bitfinex/quotes_ETHUSD_20240703
["timestamp","ask_amount","ask_price","bid_price","bid_amount"]
[1720047213583,1.90722766,3305.8,3305.6,0.93941921]
[1720047213894,1.90722766,3305.7,3305.6,0.93941921]
[1720047214060,1.90722766,3305.8,3305.6,0.93941921]
[1720047215254,1.90620563,3305.8,3305.6,0.93941921]
[1720047218546,1.90531445,3305.8,3305.6,0.93941921]
[1720047218745,1.90531445,3305.9,3305.6,0.93941921]
[1720047218980,1.90511149,3305.9,3305.6,0.93941921]
[1720047219357,1.58754106,3305.7,3305.6,0.04141921]
[1720047219557,1.58754106,3305.7,3305.6,0.93941921]
[1720047220106,1.90511149,3306.0,3305.6,0.04141921]
[1720047220414,1.58746102,3305.7,3305.6,0.04141921]
[1720047220580,1.58746102,3305.7,3305.6,0.93941921]
[1720047220780,7.61593007,3306.3,3305.6,0.93941921]
[1720047220781,1.58746102,3305.8,3305.6,0.93941921]
[1720047220979,1.26978997,3305.7,3305.6,4.36103513]
[1720047221207,1.26978997,3305.7,3305.6,6.73323513]
[1720047222320,1.26978997,3305.7,3305.6,9.75839513]
[1720047222471,1.26978997,3305.8,3305.7,3.02507]
[1720047222670,1.26978997,3305.8,3305.7,3.06693393]
[1720047222904,1.26971477,3305.9,3305.8,3.02498]
[1720047223104,1.58717689,3306.0,3305.8,3.92298]
[1720047223267,1.26957703,3306.0,3305.9,6.09159908]
[1720047223470,1.26960321,3306.1,3306.0,3.0248]
[1720047223687,1.58717689,3306.2,3306.1,3.02471]
[1720047223881,1.58717689,3306.2,3306.1,3.06652534]
[1720047224065,1.90461227,3306.5,3306.1,3.06652534]
[1720047224270,1.90461227,3306.5,3306.2,0.898]
[1720047224514,1.90461227,3306.5,3306.3,0.0417817]
[1720047224713,12.06059,3306.9,3306.2,0.898]
[1720047224868,1.90439639,3306.5,3306.3,0.0417817]
[1720047225073,1.90439639,3306.5,3306.2,0.898]
[1720047225318,1.90439639,3306.5,3306.3,0.0417817]
[1720047225517,1.90439639,3306.5,3306.2,0.898]
[1720047225669,1.90439639,3306.4,3306.2,0.898]
[1720047225875,1.90439639,3306.4,3306.3,0.0417817]
[1720047226103,2.90970794,3306.4,3306.3,0.0417817]
[1720047226508,1.90439639,3306.4,3306.2,0.898]
[1720047226693,1.90439639,3306.4,3306.3,0.0417817]
[1720047227011,1.90439639,3306.4,3306.2,0.898]
[1720047227320,1.90439639,3306.4,3306.3,0.0417817]
[1720047227505,1.90439639,3306.4,3306.2,0.898]
[1720047227822,1.90439639,3306.4,3306.3,0.04172564]
[1720047228119,1.90453707,3306.4,3306.2,0.898]
[1720047228329,1.90453707,3306.4,3306.3,0.04172564]
[1720047228624,1.90453707,3306.4,3306.2,0.898]
[1720047228922,1.90453707,3306.4,3306.3,0.04172564]
[1720047229097,1.90453707,3306.5,3306.2,0.898]
[1720047229280,1.90453707,3306.5,3306.3,0.04172564]
[1720047229481,1.90453707,3306.4,3306.2,0.898]
[1720047229774,1.90453707,3306.4,3306.3,0.04172938]
[1720047230178,1.90453707,3306.4,3306.2,0.898]
[1720047230403,1.90453707,3306.4,3306.3,0.04172938]
[1720047230716,1.90453707,3306.4,3306.2,0.898]
[1720047230916,1.90453707,3306.4,3306.3,0.04157241]
[1720047231120,1.3569029,3306.8,3306.2,0.898]
[1720047231328,1.90460902,3306.4,3306.3,0.04157241]
[1720047231625,5.09107998,3306.7,3306.2,0.898]
[1720047231626,0.81619319,3306.7,3306.2,0.898]
[1720047231827,0.81619319,3306.7,3306.3,0.04157241]
[1720047231828,1.90457727,3306.4,3306.3,0.04157241]
[1720047232023,2.90988785,3306.4,3306.3,0.04157241]
[1720047232512,2.90988785,3306.4,3306.2,0.898]
[1720047232681,1.90457727,3306.4,3306.3,0.04157241]
[1720047232877,1.90457727,3306.4,3306.2,0.898]
[1720047233196,1.90457727,3306.4,3306.3,0.04157241]
[1720047233396,1.00531066,3306.4,3306.3,0.04157241]
[1720047233594,3.05106475,3306.4,3306.0,0.898]
[1720047233779,1.90478662,3306.2,3306.0,0.898]
[1720047233995,1.90478662,3306.2,3306.1,0.04157241]
[1720047234384,1.90474683,3306.3,3306.0,0.898]
[1720047234581,1.90474683,3306.3,3306.1,0.04157241]
[1720047235280,1.90474683,3306.3,3306.2,0.898]
[1720047235483,1.90474683,3306.3,3306.0,0.898]
[1720047235484,3.34315272,3306.3,3306.0,0.898]
[1720047235721,3.34315272,3306.3,3305.6,0.898]
[1720047235722,5.93476297,3306.2,3305.6,0.898]
[1720047235924,5.93476297,3306.2,3305.4,3.02535]
[1720047235925,1.58746442,3305.8,3305.7,0.898]
[1720047236131,1.90474683,3306.0,3305.7,0.93957241]
[1720047237601,3.02462,3306.2,3305.7,0.04157241]
[1720047237919,1.90489011,3306.0,3305.7,0.898]
[1720047238086,3.15918468,3305.9,3305.7,0.898]
[1720047238435,1.90489011,3306.0,3305.7,0.898]
[1720047239286,1.90489011,3305.9,3305.7,0.898]
[1720047239812,1.90489011,3306.0,3305.7,0.898]
[1720047240414,1.90489011,3306.0,3305.9,0.898]
[1720047240738,3.45759468,3306.3,3305.9,0.898]
[1720047240949,1.58714863,3306.0,3305.9,0.898]
[1720047241222,1.58704689,3306.0,3305.9,0.93969574]
[1720047243216,3.02425,3306.6,3305.9,0.93969574]
[1720047243432,1.58716243,3306.0,3305.9,0.93969574]
[1720047243790,3.860245,3306.6,3305.9,3.96457574]
[1720047243991,1.58715745,3306.0,3305.9,3.96457574]
[1720047245038,1.58715745,3306.2,3306.0,3.0248]
[1720047245333,1.58715745,3306.3,3306.2,3.02462]
[1720047245490,1.58715745,3306.3,3306.2,3.92262]
[1720047245823,1.58715745,3306.3,3306.2,4.65906369]
[1720047246191,1.90458894,3306.7,3306.3,3.02452]
[1720047246192,1.58715745,3306.4,3306.3,3.02452]
[1720047246387,1.58701775,3306.4,3306.3,6.38812]
[1720047246623,1.58701775,3306.4,3306.3,6.42972605]
[1720047246830,1.58700365,3306.4,3306.3,6.42972605]
[1720047248399,1.58700365,3306.4,3306.3,7.37516966]
[1720047248701,1.58700365,3306.5,3306.4,3.02443]
[1720047248918,1.58700365,3306.6,3306.5,3.02434]
[1720047249119,1.58700365,3306.6,3306.5,3.92234]
[1720047249435,1.58700365,3306.6,3306.5,3.96392737]
[1720047249893,1.58700365,3306.6,3306.5,3.06592737]
[1720047250094,1.90440439,3306.7,3306.5,0.04158737]
[1720047250496,1.90440439,3306.7,3306.6,0.04152012]
[1720047250835,1.90440439,3306.7,3306.2,3.92261]
[1720047250992,1.26948289,3306.3,3306.2,3.92261]
[1720047251189,1.26948289,3306.3,3306.0,3.02479]
[1720047251448,0.95207337,3306.1,3306.0,3.02479]
[1720047251628,0.95207337,3306.1,3306.0,3.92279]
[1720047251809,0.95207337,3306.1,3306.0,4.855468]
[1720047254033,0.95207337,3306.1,3306.0,3.02479]
[1720047254244,1.26948289,3306.2,3306.1,3.02471]
[1720047254432,1.26948289,3306.2,3306.1,3.92271]
[1720047256107,1.26953571,3306.2,3306.1,3.92271]
[1720047256647,1.58692088,3306.3,3306.1,3.92271]
[1720047256802,1.58689925,3306.3,3306.1,3.92271]
[1720047257506,1.58689925,3306.3,3306.2,0.04124359]
[1720047258050,1.9042791,3306.4,3306.2,0.04124359]
[1720047258214,3.22424467,3306.3,3305.8,0.898]
[1720047258419,1.26967728,3305.9,3305.8,0.898]
[1720047258736,1.5870966,3306.0,3305.8,0.898]
[1720047258931,1.5870966,3305.9,3305.5,3.02523]
[1720047259148,1.58732565,3305.7,3305.5,3.02523]
[1720047259452,1.26981591,3305.6,3305.5,3.02523]
[1720047259603,1.26981591,3305.7,3305.5,3.92323]
[1720047259808,1.26981591,3305.7,3305.6,3.92316]
[1720047260359,1.26981591,3305.8,3305.7,3.02507]
[1720047262044,1.58732565,3305.8,3305.7,3.02507]
[1720047262249,9.78845,3306.4,3305.7,3.02507]
[1720047262551,1.58749874,3305.8,3305.7,3.02507]
[1720047262725,1.58749874,3305.8,3305.7,3.92307]
[1720047263856,1.90499849,3306.0,3305.7,3.92307]
[1720047264160,1.58776774,3305.8,3305.7,3.92307]
[1720047264465,1.58775084,3305.8,3305.7,3.92307]
[1720047264749,1.90499849,3306.1,3305.7,3.92307]
[1720047264985,3.22503724,3306.0,3305.7,3.92307]
[1720047265194,1.90499849,3306.0,3305.7,3.92307]
[1720047265650,1.90547724,3306.0,3305.7,3.92307]
[1720047265984,1.90547724,3306.0,3305.9,0.898]
[1720047266157,1.32003975,3306.0,3305.9,0.898]
[1720047267089,1.90547724,3306.1,3305.9,0.898]
[1720047268889,1.90544219,3306.1,3305.9,0.898]
[1720047269498,1.90546475,3306.1,3305.9,0.898]
[1720047270899,1.90546475,3306.1,3305.9,3.92284]
[1720047271050,1.90546475,3306.2,3305.9,3.92284]
[1720047271955,6.764,3306.4,3305.9,3.92284]
[1720047272287,1.90538972,3306.2,3306.0,3.0248]
[1720047272502,1.90538972,3306.2,3306.0,3.06508036]
[1720047273503,1.90538972,3306.2,3306.0,0.04028036]
[1720047274006,1.31997384,3306.1,3305.9,3.92284]
[1720047274190,3.22536356,3306.1,3305.9,3.92284]
[1720047274510,1.90538972,3306.0,3305.5,3.0252]
[1720047274664,1.58796171,3305.7,3305.6,0.898]
[1720047274864,1.58796171,3305.7,3305.6,0.93826538]
[1720047275194,2.2779,3306.2,3305.6,0.93826538]
[1720047275375,1.90558811,3305.9,3305.6,0.93826538]
[1720047275712,1.32011037,3305.8,3305.7,0.898]
[1720047276997,1.90558811,3305.9,3305.7,0.898]
[1720047277206,1.90558811,3305.9,3305.5,3.0252]
[1720047277387,3.22570495,3305.8,3305.6,0.898]
[1720047277589,1.90558811,3305.9,3305.5,3.0252]
[1720047277794,3.2257135,3305.8,3305.5,3.0252]
[1720047278101,1.90558811,3305.8,3305.7,0.898]
[1720047278311,1.32012755,3305.8,3305.7,0.898]
[1720047278669,3.22536451,3305.8,3305.7,0.898]
[1720047280668,1.32012755,3305.8,3305.7,0.898]
[1720047280869,3.22536451,3305.8,3305.7,0.898]
[1720047281298,1.32012755,3305.8,3305.7,0.898]
[1720047281616,1.05502461,3306.1,3305.7,0.898]
[1720047281775,1.90482096,3305.8,3305.7,0.898]
[1720047282117,1.90484517,3305.8,3305.7,0.898]
[1720047282279,1.90484517,3305.9,3305.7,0.898]
[1720047282483,1.90484517,3306.0,3305.7,1.522983]
[1720047282821,1.58713267,3305.9,3305.6,5.35176]
[1720047283115,1.26963065,3305.8,3305.7,3.02507]
[1720047283404,1.26963065,3305.8,3305.7,3.92307]
[1720047283646,1.26963065,3305.8,3305.7,4.850553]
[1720047284687,1.26963065,3305.8,3305.7,7.875623]
[1720047284877,1.26963065,3305.9,3305.8,6.04996]
[1720047285090,1.26963065,3305.9,3305.8,6.94796]
[1720047285271,1.26963065,3305.9,3305.8,7.875416]
[1720047285470,1.58709149,3306.0,3305.9,3.02489]
[1720047286575,1.58709149,3306.0,3305.9,3.92289]
[1720047286777,1.90450979,3306.2,3305.9,3.92289]
[1720047286977,2.09496077,3306.2,3305.9,3.92289]
[1720047287202,1.32000657,3306.1,3305.9,3.92289]
[1720047287515,1.90450979,3306.2,3306.0,0.03760794]
[1720047287823,1.90450979,3306.2,3306.1,0.898]
[1720047287972,3.0244,3306.5,3306.0,0.03760794]
[1720047288315,1.90484039,3306.1,3305.9,0.898]
[1720047288520,10.18161061,3306.4,3305.9,0.898]
[1720047288521,3.22488417,3306.0,3305.9,0.898]
[1720047288876,1.90484039,3306.1,3305.9,0.898]
[1720047289073,1.3200633,3306.0,3305.9,0.898]
[1720047289504,1.32006356,3306.0,3305.9,0.898]
[1720047289706,3.22490395,3306.0,3305.5,3.0252]
[1720047289885,1.26987534,3305.6,3305.5,3.856991]
[1720047290208,1.26987534,3305.6,3305.5,4.754991]
[1720047290987,1.58734417,3305.7,3305.5,4.754991]
[1720047291195,5.24687303,3306.3,3305.5,4.754991]
[1720047291196,3.02454,3306.3,3305.5,4.754991]
[1720047291394,1.26985732,3305.6,3305.5,3.0252]
[1720047291611,1.58732322,3305.7,3305.5,3.9232]
[1720047292504,1.58732322,3305.6,3305.5,3.9232]
[1720047293415,1.58732322,3305.7,3305.5,3.9232]
[1720047293714,1.90478787,3305.9,3305.6,0.898]
[1720047293872,1.90478787,3306.0,3305.6,0.898]
[1720047294211,3.22490311,3305.9,3305.6,0.898]
[1720047294411,1.58756772,3305.7,3305.6,0.898]
[1720047294941,1.90510685,3305.9,3305.6,0.898]
[1720047295117,1.90510685,3305.9,3305.8,0.898]
[1720047295274,1.90510685,3306.0,3305.8,0.898]
[1720047296297,3.22516063,3305.9,3305.8,0.898]
[1720047296497,5.64985538,3306.5,3305.8,0.898]
[1720047296498,1.90510685,3306.0,3305.8,0.898]
[1720047297044,5.24716466,3306.3,3305.8,0.898]
[1720047297045,3.22519915,3305.9,3305.8,0.898]
[1720047297243,1.32005558,3305.9,3305.8,0.898]
[1720047297602,3.2258962,3305.9,3305.8,0.898]
[1720047297802,3.02454,3306.3,3305.8,0.898]
[1720047298021,1.90576463,3306.0,3305.8,0.898]
[1720047298322,3.59885888,3305.9,3305.3,3.02541]
[1720047298523,1.58834175,3305.4,3305.3,3.02542]
[1720047298834,1.58834175,3305.4,3305.3,3.92342]
[1720047299545,1.58834175,3305.4,3305.3,0.898]
[1720047299838,1.90576463,3305.6,3305.2,3.02544]
[1720047300043,1.5886641,3305.3,3305.2,3.02544]
[1720047300241,1.5886641,3305.3,3305.2,3.92344]
[1720047300541,1.5886641,3305.3,3305.2,6.931054]
[1720047300745,3.02456,3306.3,3305.3,3.02544]
[1720047300746,1.58881037,3305.4,3305.3,3.02544]
[1720047301043,0.95319203,3305.4,3305.3,9.26158]
[1720047301347,1.27093504,3305.5,3305.4,11.5534]
[1720047301641,0.95325823,3305.5,3305.4,11.5534]
[1720047302235,1.27093504,3305.6,3305.5,6.05052]
[1720047302480,1.27093504,3305.6,3305.5,6.94852]
[1720047302827,1.90657245,3305.9,3305.6,3.02516]
[1720047303017,1.32004135,3305.8,3305.5,3.06302491]
[1720047303222,1.90728866,3305.8,3305.7,0.898]
[1720047303540,1.90728866,3305.8,3305.7,0.93566025]
[1720047303541,3.22739557,3305.8,3305.7,0.93566025]
[1720047304543,3.22746647,3305.8,3305.7,0.93566025]
[1720047304773,1.32007932,3305.8,3305.7,0.93566025]
[1720047304973,3.22751377,3305.8,3305.7,0.93566025]
[1720047306565,3.22746162,3305.8,3305.7,0.93566025]
[1720047306967,3.22741525,3305.8,3305.7,0.93566025]
[1720047308477,1.32006488,3305.8,3305.7,0.93566025]
[1720047309602,1.32001466,3305.8,3305.7,3.96072025]
[1720047309769,1.90731957,3306.0,3305.7,4.65930128]
[1720047310090,1.31999575,3305.9,3305.7,3.06272025]
[1720047310288,1.31999575,3305.9,3305.8,0.898]
[1720047310662,1.31999575,3305.9,3305.8,0.93568269]
[1720047311297,3.22731532,3305.9,3305.8,0.93568269]
[1720047311502,1.31999575,3305.9,3305.8,0.93568269]
[1720047312880,1.32010734,3305.9,3305.8,0.93568269]
[1720047313789,1.32010734,3306.0,3305.8,0.93568269]
[1720047314298,1.90730427,3305.9,3305.8,0.93568269]
[1720047314504,3.22741161,3305.9,3305.8,0.93568269]
[1720047314829,1.32010734,3305.9,3305.8,0.93568269]
[1720047315328,1.32010734,3305.9,3305.8,0.03768269]
[1720047315537,3.22741161,3305.9,3305.8,0.93568269]
[1720047315718,3.22741161,3305.9,3305.7,3.02506]
[1720047316036,1.90735211,3305.9,3305.8,0.03772007]
[1720047316206,1.90735211,3305.9,3305.8,0.93572007]
[1720047316207,3.22739475,3305.9,3305.8,0.93572007]
[1720047317034,2.3775,3306.3,3305.8,0.93572007]
[1720047317245,1.90737873,3305.9,3305.8,0.93572007]
[1720047317416,3.22742115,3305.9,3305.8,0.93572007]
[1720047317805,1.32004242,3305.9,3305.8,0.93572007]
[1720047318006,1.32004242,3305.9,3305.8,0.03772007]
[1720047318338,1.04772026,3305.9,3305.7,0.898]
[1720047318510,3.22764993,3305.8,3305.7,0.898]
[1720047319264,5.40204,3306.3,3305.7,0.898]
[1720047319420,1.90758221,3305.8,3305.7,0.898]
[1720047319619,3.22766239,3305.8,3305.7,0.898]
[1720047319860,3.22768456,3305.8,3305.7,0.898]
[1720047320360,1.32007958,3305.8,3305.7,0.898]
[1720047321705,2.22553915,3306.0,3305.7,0.898]
[1720047321706,1.32007958,3305.9,3305.7,0.898]
[1720047321863,1.32007958,3305.8,3305.7,0.898]
[1720047322054,1.32007958,3305.9,3305.7,0.898]
[1720047322260,2.36782685,3305.8,3305.5,0.898]
[1720047322456,1.90776745,3305.6,3305.5,0.898]
[1720047322763,3.22794633,3305.6,3305.4,0.898]
[1720047323000,3.22788988,3305.5,3305.4,0.898]
[1720047323959,3.22790936,3305.5,3305.4,0.898]
[1720047325676,3.2276655,3305.5,3305.4,0.898]
[1720047326405,1.90746588,3305.7,3305.4,0.898]
[1720047326607,1.32012686,3305.6,3305.2,3.02545]
[1720047326774,1.90746588,3305.5,3305.3,3.02543]
[1720047326975,1.90746588,3305.6,3305.4,0.898]
[1720047327176,1.32017203,3305.5,3305.4,0.898]
[1720047328815,1.32017203,3305.5,3305.4,0.9356528]
[1720047329029,1.90746588,3305.6,3305.5,3.02526]
[1720047329233,6.764,3306.2,3305.4,1.63430608]
[1720047329234,1.58937538,3305.7,3305.6,5.37166]
[1720047329436,1.90746588,3306.0,3305.7,3.02507]
[1720047329641,1.90746588,3306.1,3305.9,0.898]
[1720047329933,1.31994643,3306.0,3305.9,3.0248]
[1720047330137,1.31994643,3306.0,3305.9,3.9228]
[1720047330339,3.02426,3306.6,3306.0,3.02479]
[1720047330494,1.90699469,3306.1,3306.0,3.02479]
[1720047330698,3.22693314,3306.1,3306.0,3.92279]
[1720047330900,1.31993845,3306.1,3306.0,3.92279]
[1720047332108,6.04828,3306.8,3306.0,3.92279]
[1720047332336,1.90688078,3306.2,3306.1,0.898]
[1720047332657,6.61351074,3306.7,3306.1,0.898]
[1720047332658,1.10799571,3306.7,3306.1,0.93570138]
[1720047332811,1.9068578,3306.2,3306.1,0.93570138]
[1720047332999,3.22677189,3306.2,3306.1,0.93570138]
[1720047333704,3.22677189,3306.2,3306.1,3.96041138]
[1720047333948,1.9068578,3306.4,3306.1,7.00543252]
[1720047334142,1.9068578,3306.6,3306.4,3.92243]
[1720047334346,1.9068578,3306.8,3306.5,0.898]
[1720047334571,1.9068578,3306.9,3306.8,0.898]
[1720047334786,3.22647854,3306.9,3306.8,0.898]
[1720047335164,3.22530524,3306.9,3306.8,0.93563037]
[1720047335349,3.22530486,3306.9,3306.8,0.93563037]
[1720047335844,3.22464328,3306.9,3306.6,3.02425]
[1720047336056,1.90497637,3306.9,3306.7,0.03748496]
[1720047336287,1.3196637,3306.8,3306.7,0.03748496]
[1720047336573,1.90497637,3307.0,3306.7,0.03748496]
[1720047336791,3.22466084,3306.9,3306.7,0.03748496]
[1720047336946,1.90497637,3307.0,3306.7,0.03748496]
[1720047337146,1.31966336,3306.9,3306.7,0.03748496]
[1720047337355,1.90497637,3307.0,3306.7,0.03748496]
[1720047337880,1.31966066,3306.9,3306.7,0.03748496]
[1720047338241,1.90497637,3307.0,3306.7,0.03748496]
[1720047338443,1.90386315,3307.0,3306.7,0.03748496]
[1720047338645,1.90347039,3307.0,3306.7,0.03748496]
[1720047339282,1.31968812,3306.9,3306.7,0.03748496]
[1720047339587,1.90347039,3306.8,3306.7,0.03748496]
[1720047339788,3.22315851,3306.8,3306.2,3.02458]
[1720047340076,1.26886989,3306.4,3306.3,3.02452]
[1720047340281,1.26886989,3306.4,3306.3,3.0616425]
[1720047340679,1.58608758,3306.5,3306.3,3.0616425]
[1720047340986,1.26877888,3306.4,3306.3,3.0616425]
[1720047341888,1.58582341,3306.6,3306.4,3.02442]
[1720047342459,1.58582341,3306.6,3306.5,0.0371225]
[1720047342778,2.275,3306.7,3306.5,0.0371225]
[1720047342990,2.99520281,3306.7,3306.1,3.0247]
[1720047343278,1.26860862,3306.2,3306.0,3.02478]
[1720047343654,1.26860862,3306.2,3306.1,3.02471]
[1720047345389,2.275,3306.7,3306.1,3.02471]
[1720047345570,1.26856378,3306.2,3306.1,3.02471]
[1720047345755,1.26856378,3306.3,3306.2,3.02462]
[1720047347500,1.26856378,3306.3,3306.2,3.0617425]
[1720047348588,1.26852632,3306.3,3306.2,3.0617425]
[1720047348982,1.2685298,3306.3,3306.2,3.0617425]
[1720047353569,1.2685298,3306.4,3306.3,3.02452]
[1720047353808,1.2685298,3306.5,3306.4,3.02443]
[1720047354111,1.2685298,3306.6,3306.5,3.02434]
[1720047354285,1.58563423,3306.7,3306.5,3.02434]
[1720047354601,1.26832214,3306.6,3306.5,3.02434]
[1720047355006,1.26832214,3306.7,3306.6,3.02425]
[1720047356123,1.26832214,3306.8,3306.7,6.04832]
[1720047356266,8.34963423,3306.9,3306.8,3.02407]
[1720047356267,8.03232214,3306.9,3306.8,3.02407]
[1720047356478,1.26832214,3306.9,3306.8,3.02407]
[1720047357878,2.258,3307.3,3306.8,3.02407]
[1720047357879,1.58468808,3307.0,3306.8,3.02407]
[1720047358213,1.58468808,3307.0,3306.7,3.02416]
[1720047358214,1.58473171,3307.0,3306.9,3.92098]
[1720047359201,1.58473171,3307.0,3306.9,3.02398]
[1720047359509,1.58473171,3307.0,3306.9,3.92098]
[1720047359893,1.58473171,3307.0,3306.9,0.897]
[1720047360220,1.58463547,3307.0,3306.9,0.897]
[1720047360728,1.58460235,3307.0,3306.9,0.897]
[1720047361094,1.58461187,3307.0,3306.9,0.897]
[1720047362583,1.58461187,3307.0,3306.9,0.93400291]
[1720047362913,1.26746725,3307.0,3306.9,3.95797291]
[1720047363076,1.58461187,3307.1,3306.9,3.95797291]
[1720047363282,1.5843435,3307.1,3306.9,3.95797291]
[1720047364047,1.26738368,3307.0,3306.9,3.95797291]
[1720047364530,1.5843435,3307.0,3306.9,3.95797291]
[1720047364824,1.2674044,3307.0,3306.9,3.95797291]
[1720047365416,1.2674044,3307.0,3306.9,3.06097291]
[1720047365725,1.2674044,3307.0,3306.9,3.95797291]
[1720047366729,1.58424532,3307.1,3306.9,0.93400291]
[1720047367138,1.58424532,3307.0,3306.9,0.93400291]
[1720047367737,1.58433175,3307.1,3306.9,0.93400291]
[1720047369631,12.08203,3307.5,3306.9,3.95797291]
[1720047369815,1.58471373,3307.1,3306.9,3.95797291]
[1720047370018,12.08203,3307.5,3306.9,3.95797291]
[1720047370228,1.58473235,3307.1,3306.9,3.95797291]
[1720047370527,1.58473235,3307.0,3306.9,3.95797291]
[1720047371500,1.90167882,3307.2,3306.9,3.95797291]
[1720047371691,1.58539118,3307.0,3306.9,3.95797291]
[1720047371897,1.58539118,3307.0,3306.9,6.22887291]
[1720047372735,1.58539118,3307.0,3306.9,3.95797291]
[1720047372937,1.58564693,3307.0,3306.9,3.95797291]
[1720047374440,1.90277632,3307.2,3306.9,3.95797291]
[1720047374621,1.90277632,3307.2,3307.1,0.897]
[1720047374933,3.22233811,3307.2,3307.1,0.93247342]
[1720047376231,3.22358631,3307.2,3307.1,0.93247342]
[1720047377198,11.27995807,3307.5,3307.1,0.93247342]
[1720047377199,9.0586,3307.5,3307.1,0.93247342]
[1720047377402,1.90416902,3307.2,3307.1,0.93247342]
[1720047377701,3.22373249,3307.2,3307.1,0.93247342]
[1720047378358,3.22388264,3307.2,3307.1,0.93247342]
[1720047379460,1.90432099,3307.2,3307.1,0.93247342]
[1720047379644,1.31955653,3307.2,3307.1,3.95626342]
[1720047380965,1.31947789,3307.2,3307.1,3.95626342]
[1720047381481,1.90432099,3307.3,3307.1,3.95626342]
[1720047381650,1.90432099,3307.3,3307.1,6.97998342]
[1720047382239,1.90432099,3307.3,3307.2,3.0237]
[1720047382484,3.22379621,3307.3,3307.2,3.05909872]
[1720047382665,2.3476,3307.7,3307.2,3.05909872]
[1720047382853,1.90428243,3307.3,3307.2,3.05909872]
[1720047383174,2.3476,3307.7,3307.2,3.95609872]
[1720047383350,1.90429155,3307.3,3307.2,3.95609872]
[1720047383552,4.27097988,3307.3,3307.2,3.95609872]
[1720047385968,4.27074571,3307.3,3307.2,3.95609872]
[1720047386149,2.36669821,3307.3,3307.2,3.95609872]
[1720047386357,1.31946122,3307.3,3307.2,3.95609872]
[1720047386558,2.36667082,3307.3,3307.2,3.95609872]
[1720047387600,4.27068168,3307.3,3307.2,0.03539872]
[1720047387889,4.27073352,3307.3,3307.0,0.897]
[1720047388086,2.36667082,3307.2,3307.1,0.03537256]
[1720047388454,2.36667082,3307.2,3307.1,3.05915256]
[1720047389391,2.36679294,3307.2,3307.1,3.05915256]
[1720047390396,4.27086443,3307.2,3307.1,3.05915256]
[1720047391396,1.31953943,3307.2,3307.1,3.05915256]
[1720047391698,4.27086342,3307.2,3307.1,3.05915256]
[1720047392199,3.22361092,3307.2,3307.1,3.05915256]
[1720047392568,3.22427673,3307.2,3307.1,3.05915256]
[1720047393502,4.27152971,3307.2,3307.1,3.05915256]
[1720047393677,3.22427673,3307.2,3307.1,3.05915256]
[1720047394282,4.27153332,3307.2,3307.1,3.05915256]
[1720047395698,1.31954365,3307.2,3307.1,3.05915256]
[1720047396111,1.04725674,3307.2,3307.1,3.05915256]
[1720047396267,1.04725766,3307.2,3307.1,3.05915256]
[1720047396466,2.22310984,3307.4,3307.1,3.05915256]
[1720047396665,2.36679871,3307.3,3307.1,3.05915256]
[1720047396900,1.31954265,3307.2,3307.1,3.05915256]
[1720047397279,1.31954265,3307.4,3307.1,3.05915256]
[1720047397476,2.36678389,3307.3,3307.1,3.05915256]
[1720047397698,2.36678389,3307.2,3307.1,3.05915256]
[1720047398896,2.36680206,3307.2,3307.1,3.05915256]
[1720047399269,2.36679369,3307.2,3307.1,3.05915256]
[1720047402192,1.31953686,3307.2,3307.1,3.05915256]
[1720047402389,2.36678834,3307.2,3307.1,3.05915256]
[1720047402805,1.31953686,3307.2,3307.1,3.05915256]
[1720047403000,1.31953686,3307.3,3307.1,3.05915256]
[1720047403209,1.31953686,3307.3,3307.2,0.897]
[1720047403426,2.36674357,3307.3,3307.2,0.93116873]
[1720047405417,2.36671458,3307.3,3307.2,0.93116873]
[1720047405626,4.59230491,3307.3,3307.2,0.93116873]
[1720047405920,2.36671458,3307.3,3307.2,0.93116873]
[1720047408601,2.3476,3307.7,3307.2,0.93116873]
[1720047408799,2.22563726,3307.4,3307.2,0.93116873]
[1720047408998,2.3667435,3307.3,3307.2,0.93116873]
[1720047409313,2.36672945,3307.3,3307.2,0.93116873]
[1720047411779,2.3667008,3307.3,3307.2,0.93116873]
[1720047415191,1.0472198,3307.3,3307.2,0.93116873]
[1720047415410,2.3667132,3307.3,3307.2,3.37526873]
[1720047415613,2.3667132,3307.3,3307.2,0.93116873]
[1720047415817,1.3194934,3307.3,3307.2,0.93116873]
[1720047416123,2.36668508,3307.3,3307.2,0.93116873]
[1720047417145,4.59243376,3307.3,3307.2,0.93116873]
[1720047418383,4.59271897,3307.3,3307.2,0.93116873]
[1720047418655,5.63994433,3307.3,3307.2,0.93116873]
[1720047420969,4.59271897,3307.3,3307.2,0.93116873]
[1720047421141,5.63995105,3307.3,3307.2,0.93116873]
[1720047421520,1.04722536,3307.3,3307.2,0.93116873]
[1720047421826,4.3205943,3307.3,3307.2,0.93116873]
[1720047422026,5.64010706,3307.3,3307.2,0.93116873]
[1720047422429,7.22447835,3307.3,3307.2,0.93116873]
[1720047422611,5.64010706,3307.3,3307.2,0.93116873]
[1720047423958,1.04722536,3307.3,3307.2,0.93116873]
[1720047424119,4.59301937,3307.3,3307.2,0.93116873]
[1720047424319,5.64026469,3307.3,3307.2,0.93116873]
[1720047424751,3.41399979,3307.3,3307.2,0.93116873]
[1720047424957,5.64032521,3307.3,3307.2,0.93116873]
[1720047425653,3.41399979,3307.3,3307.2,0.93116873]
[1720047425952,5.64032521,3307.3,3307.2,0.93116873]
[1720047427364,5.47607918,3307.3,3307.2,0.03416873]
[1720047427734,5.47607918,3307.3,3307.2,0.03415376]
[1720047428143,4.91204666,3307.3,3307.2,0.03415376]
[1720047428438,4.91204666,3307.3,3307.2,0.03415003]
[1720047428763,4.91204666,3307.3,3307.0,0.897]
[1720047428939,4.91204666,3307.3,3306.8,3.02406]
[1720047428940,1.04722536,3307.3,3307.2,0.03415003]
[1720047429258,4.9123041,3307.3,3307.0,0.897]
[1720047429464,2.22618121,3307.1,3307.0,0.897]
[1720047429774,4.59311185,3307.1,3307.0,0.897]
[1720047430332,2.22618121,3307.1,3307.0,0.897]
[1720047430531,4.59309569,3307.1,3307.0,0.897]
[1720047431855,2.36691448,3307.1,3307.0,0.897]
[1720047432162,4.59309569,3307.1,3307.0,0.897]
[1720047432766,2.36691448,3307.1,3307.0,0.897]
[1720047432947,4.59309569,3307.1,3307.0,0.897]
[1720047433467,2.36691448,3307.1,3307.0,0.897]
[1720047433765,2.36692268,3307.1,3307.0,0.897]